fUSD/lending_fUSD_20250916
["ID","MTS","AMOUNT","RATE_DAILY","PERIOD"]
[385818333,1758055928192,-400.0,0.00032602,6]
[385818334,1758055928203,-432.05,0.00032602,6]
[385818335,1758055928213,-989.12,0.00032602,6]
[385818336,1758055928223,-566.3,0.00032602,6]
[385818337,1758055928233,-403.92,0.00032602,6]
[385818338,1758055928243,-1276.01,0.00032602,6]
[385818339,1758055928252,-400.0,0.00032602,6]
[385818340,1758055928274,-413.02294793,0.00032602,6]
[385818341,1758055928284,-400.0,0.00032602,6]
[385818342,1758055928294,-400.0,0.00032602,6]
[385818343,1758055928303,-400.0,0.00032602,6]
[385818344,1758055928313,-418.98,0.00032602,6]
[385818345,1758055928323,-2326.43,0.00032602,6]
[385818346,1758055928333,-400.0,0.00032602,6]
[385818347,1758055928343,-400.0,0.00032602,6]
[385818348,1758055928355,-579.99,0.00032602,6]
[385818349,1758055928365,-400.0,0.00032602,6]
[385818350,1758055928376,-400.0,0.00032602,6]
[385818351,1758055928387,-1109.01,0.00032602,6]
[385818352,1758055928398,-538.32,0.00032602,6]
[385818353,1758055928407,-376.78668803,0.00032602,6]
[385818354,1758055928417,-331.77644852,0.00032602,6]
[385818355,1758055928428,-1132.05,0.00032602,6]
[385818356,1758055928439,-500.0,0.00032602,7]
[385818357,1758055928448,-867.79,0.00032602,6]
[385818358,1758055928458,-449.54,0.00032602,6]
[385818359,1758055928468,-1010.91,0.00032602,6]
[385818360,1758055928478,-662.74,0.00032602,6]
[385818361,1758055928488,-533.65,0.00032602,6]
[385818362,1758055928498,-400.0,0.00032602,6]
[385818363,1758055928507,-400.0,0.00032602,6]
[385818364,1758055928517,-400.0,0.00032602,6]
[385818365,1758055928527,-648.06,0.00032602,6]
[385818366,1758055928536,-1125.68,0.00032602,6]
[385818367,1758055928546,-539.15,0.00032602,6]
[385818368,1758055928555,-400.0,0.00032602,6]
[385818369,1758055928565,-493.22,0.00032602,6]
[385818370,1758055928575,-589.24,0.00032602,6]
[385818371,1758055928584,-624.32,0.00032602,6]
[385818372,1758055928593,-798.32,0.00032602,6]
[385818373,1758055928602,-1260.04,0.00032602,6]
[385818374,1758055928611,-623.88,0.00032602,6]
[385818375,1758055928621,-540.9,0.00032602,6]
[385818376,1758055928630,-400.0,0.00032602,6]
[385818377,1758055928640,-576.24,0.00032602,6]
[385818378,1758055928649,-483.13,0.00032602,6]
[385818379,1758055928659,-1873.62,0.00032602,6]
[385818380,1758055928669,-619.08,0.00032602,6]
[385818381,1758055928678,-483.51,0.00032602,6]
[385818382,1758055928688,-832.27,0.00032602,6]
[385818383,1758055928698,-3866.02,0.00032602,6]
[385818384,1758055928707,-400.0,0.00032602,6]
[385818385,1758055928717,-684.05,0.00032602,6]
[385818386,1758055928726,-400.0,0.00032602,6]
[385818387,1758055928736,-400.0,0.00032602,6]
[385818388,1758055928745,-490.35950395,0.00032602,6]
[385818389,1758055928755,-400.0,0.00032602,6]
[385818390,1758055928765,-1080.44,0.00032602,6]
[385818391,1758055928775,-400.0,0.00032602,6]
[385818392,1758055928785,-325.46858633,0.00032602,6]
[385818393,1758055928795,-400.0,0.00032602,6]
[385818394,1758055928804,-419.16819515,0.00032602,6]
[385818395,1758055928814,-603.43,0.00032602,6]
[385818396,1758055928823,-539.06,0.00032602,6]
[385818397,1758055928833,-674.22,0.00032602,6]
[385818398,1758055928842,-881.46,0.00032602,6]
[385818399,1758055928852,-416.64,0.00032602,6]
[385818400,1758055928862,-456.38,0.00032602,6]
[385818401,1758055928871,-500.02,0.00032602,6]
[385818402,1758055928881,-594.86,0.00032602,6]
[385818403,1758055928894,-4462.76,0.00032602,6]
[385818404,1758055928904,-416.47,0.00032602,6]
[385818405,1758055928914,-400.0,0.00032602,6]
[385818406,1758055928924,-691.5,0.00032602,6]
[385818407,1758055928933,-863.73,0.00032602,6]
[385818408,1758055928943,-400.0,0.00032602,6]
[385818409,1758055928953,-820.55,0.00032602,6]
[385818410,1758055928962,-934.84,0.00032602,6]
[385818411,1758055928971,-400.0,0.00032602,6]
[385818412,1758055928981,-400.0,0.00032602,6]
[385818413,1758055928990,-285.26185627,0.00032602,6]
[385818414,1758055928999,-423.92,0.00032602,6]
[385818415,1758055929009,-400.0,0.00032602,6]
[385818416,1758055929018,-600.6,0.00032602,6]
[385818417,1758055929027,-559.15,0.00032602,6]
[385818418,1758055929036,-805.77,0.00032602,6]
[385818419,1758055929046,-543.14543091,0.00032602,6]
[385818420,1758055929055,-400.0,0.00032602,6]
[385818421,1758055929065,-400.0,0.00032602,6]
[385818422,1758055929074,-1316.13,0.00032602,6]
[385818423,1758055929083,-1155.56,0.00032602,6]
[385818424,1758055929093,-286.14872351,0.00032602,6]
[385818425,1758055929103,-910.36,0.00032602,6]
[385818426,1758055929113,-400.0,0.00032602,6]
[385818427,1758055929122,-400.0,0.00032602,6]
[385818428,1758055929132,-597.27,0.00032602,6]
[385818429,1758055929142,-655.36,0.00032602,6]
[385818430,1758055929151,-465.08,0.00032602,6]
[385818431,1758055929161,-1000.65,0.00032602,6]
[385818432,1758055929171,-2311.18,0.00032602,6]
[385818433,1758055929181,-400.0,0.00032602,6]
[385818434,1758055929190,-1273.95,0.00032602,6]
[385818435,1758055929200,-471.4,0.00032602,6]
[385818436,1758055929209,-846.63,0.00032602,6]
[385818437,1758055929219,-400.0,0.00032602,6]
[385818438,1758055929229,-560.78,0.00032602,6]
[385818439,1758055929239,-400.0,0.00032602,6]
[385818440,1758055929249,-14098.53,0.00032602,6]
[385818441,1758055929259,-400.0,0.00032602,6]
[385818442,1758055929268,-937.69,0.00032602,6]
[385818443,1758055929278,-400.0,0.00032602,6]
[385818444,1758055929288,-503.05,0.00032602,6]
[385818445,1758055929299,-400.0,0.00032602,6]
[385818446,1758055929313,-553.78,0.00032602,6]
[385818447,1758055929322,-400.0,0.00032602,6]
[385818448,1758055929331,-567.68,0.00032602,6]
[385818449,1758055929341,-824.87,0.00032602,6]
[385818450,1758055929354,-400.0,0.00032602,6]
[385818451,1758055929364,-526.12,0.00032602,6]
[385818452,1758055929374,-400.0,0.00032602,6]
[385818453,1758055929384,-400.0,0.00032602,6]
[385818454,1758055929395,-400.0,0.00032602,6]
[385818455,1758055929405,-2437.93,0.00032602,6]
[385818456,1758055929415,-756.47,0.00032602,6]
[385818457,1758055929426,-400.0,0.00032602,6]
[385818458,1758055929436,-542.28,0.00032602,6]
[385818459,1758055929446,-967.74,0.00032602,6]
[385818460,1758055929456,-661.2,0.00032602,6]
[385818461,1758055929465,-780.22,0.00032602,6]
[385818462,1758055929475,-934.86,0.00032602,6]
[385818463,1758055929485,-400.0,0.00032602,6]
[385818464,1758055929494,-400.0,0.00032602,6]
[385818465,1758055929504,-3476.13,0.00032602,6]
[385818466,1758055929514,-471.94,0.00032602,6]
[385818467,1758055929523,-1084.85,0.00032602,6]
[385818468,1758055929533,-513.51053011,0.00032602,6]
[385818469,1758055929543,-1066.11,0.00032602,6]
[385818470,1758055929553,-882.36,0.00032602,6]
[385818471,1758055929563,-933.57,0.00032602,6]
[385818472,1758055929573,-593.88,0.00032602,6]
[385818473,1758055929583,-1071.43,0.00032602,6]
[385818474,1758055929593,-400.0,0.00032602,6]
[385818475,1758055929603,-400.0,0.00032602,6]
[385818476,1758055929613,-400.0,0.00032602,6]
[385818477,1758055929623,-748.66,0.00032602,6]
[385818478,1758055929633,-400.0,0.00032602,6]
[385818479,1758055929643,-451.23,0.00032602,6]
[385818480,1758055929653,-283.20813884,0.00032602,6]
[385818481,1758055929663,-493.33,0.00032602,6]
[385818482,1758055929673,-669.04,0.00032602,6]
[385818483,1758055929683,-531.92078138,0.00032602,6]
[385818484,1758055929693,-489.8554941,0.00032602,6]
[385818485,1758055929702,-560.66,0.00032602,6]
[385818486,1758055929712,-400.0,0.00032602,6]
[385818487,1758055929726,-673.15,0.00032602,6]
[385818488,1758055929736,-735.64,0.00032602,6]
[385818489,1758055929746,-400.0,0.00032602,6]
[385818490,1758055929756,-400.0,0.00032602,6]
[385818491,1758055929766,-400.0,0.00032602,6]
[385818492,1758055929776,-400.0,0.00032602,6]
[385818493,1758055929786,-468.22,0.00032602,6]
[385818494,1758055929796,-323.8,0.00032602,6]
[385818495,1758055929806,-1125.3,0.00032602,6]
[385818496,1758055929816,-552.42,0.00032602,6]
[385818497,1758055929825,-400.0,0.00032602,6]
[385818498,1758055929835,-382.33108008,0.00032602,6]
[385818499,1758055929845,-909.09,0.00032602,6]
[385818500,1758055929855,-853.45,0.00032602,6]
[385818501,1758055929864,-527.01,0.00032602,6]
[385818502,1758055929874,-401.89,0.00032602,6]
[385818503,1758055929885,-443.52,0.00032602,6]
[385818504,1758055929895,-400.0,0.00032602,6]
[385818505,1758055929904,-852.14,0.00032602,6]
[385818506,1758055929915,-400.0,0.00032602,6]
[385818507,1758055929925,-479.26,0.00032602,6]
[385818508,1758055929934,-1176.21,0.00032602,6]
[385818509,1758055929944,-400.0,0.00032602,6]
[385818510,1758055929954,-438.55793257,0.00032602,6]
[385818511,1758055929965,-4365.82,0.00032602,6]
[385818512,1758055929974,-400.0,0.00032602,6]
[385818513,1758055929986,-1339.24,0.00032602,6]
[385818514,1758055929996,-400.0,0.00032602,6]
[385818515,1758055930009,-590.86,0.00032602,6]
[385818516,1758055930020,-494.7,0.00032602,6]
[385818517,1758055930030,-995.2,0.00032602,6]
[385818518,1758055930040,-400.0,0.00032602,6]
[385818519,1758055930050,-588.68,0.00032602,6]
[385818520,1758055930059,-400.0,0.00032602,6]
[385818521,1758055930070,-400.0,0.00032602,6]
[385818522,1758055930080,-400.0,0.00032602,6]
[385818523,1758055930090,-1092.66,0.00032602,6]
[385818524,1758055930101,-400.0,0.00032602,6]
[385818525,1758055930112,-965.27,0.00032602,6]
[385818526,1758055930125,-400.0,0.00032602,6]
[385818527,1758055930136,-915.59,0.00032602,6]
[385818528,1758055930146,-693.26,0.00032602,6]
[385818529,1758055930156,-400.0,0.00032602,6]
[385818530,1758055930168,-400.0,0.00032602,6]
[385818531,1758055930178,-873.33,0.00032602,6]
[385818532,1758055930189,-659.67,0.00032602,6]
[385818533,1758055930200,-724.66,0.00032602,6]
[385818534,1758055930211,-400.0,0.00032602,6]
[385818535,1758055930221,-400.0,0.00032602,6]
[385818536,1758055930231,-463.42,0.00032602,6]
[385818537,1758055930242,-400.0,0.00032602,6]
[385818538,1758055930252,-1187.49,0.00032602,6]
[385818539,1758055930263,-611.4,0.00032602,6]
[385818540,1758055930273,-400.0,0.00032602,6]
[385818541,1758055930283,-825.95,0.00032602,6]
[385818542,1758055930294,-2051.76,0.00032602,6]
[385818543,1758055930303,-400.0,0.00032602,6]
[385818544,1758055930313,-752.32,0.00032602,6]
[385818545,1758055930323,-2551.67,0.00032602,6]
[385818546,1758055930334,-2057.54,0.00032602,6]
[385818547,1758055930345,-400.0,0.00032602,6]
[385818548,1758055930359,-449.27,0.00032602,6]
[385818549,1758055930370,-400.0,0.00032602,6]
[385818550,1758055930381,-633.85,0.00032602,6]
[385818551,1758055930392,-400.0,0.00032602,6]
[385818552,1758055930405,-400.0,0.00032602,6]
[385818553,1758055930415,-457.48,0.00032602,6]
[385818554,1758055930427,-400.0,0.00032602,6]
[385818555,1758055930438,-1149.2,0.00032602,6]
[385818556,1758055930448,-809.23,0.00032602,6]
[385818557,1758055930459,-400.0,0.00032602,6]
[385818558,1758055930469,-255.32564914,0.00032602,6]
[385818559,1758055930480,-400.0,0.00032602,6]
[385818560,1758055930490,-406.64,0.00032602,6]
[385818561,1758055930502,-757.93,0.00032602,6]
[385818562,1758055930512,-678.31,0.00032602,6]
[385818563,1758055930523,-669.07,0.00032602,6]
[385818564,1758055930533,-160.27274508,0.00032602,6]
[385818565,1758055930544,-400.0,0.00032602,6]
[385818566,1758055930554,-435.49,0.00032602,6]
[385818567,1758055930565,-544.7,0.00032602,6]
[385818568,1758055930575,-400.0,0.00032602,6]
[385818569,1758055930585,-755.72,0.00032602,6]
[385818570,1758055930596,-1264.24,0.00032602,6]
[385818571,1758055930606,-400.0,0.00032602,6]
[385818572,1758055930617,-651.62,0.00032602,6]
[385818573,1758055930627,-2602.41,0.00032602,6]
[385818574,1758055930637,-400.0,0.00032602,6]
[385818575,1758055930649,-400.0,0.00032602,6]
[385818576,1758055930660,-4091.94,0.00032602,6]
[385818577,1758055930671,-400.0,0.00032602,6]
[385818578,1758055930682,-475.44,0.00032602,6]
[385818579,1758055930692,-400.0,0.00032602,6]
[385818580,1758055930703,-400.0,0.00032602,6]
[385818581,1758055930713,-405.59,0.00032602,6]
[385818582,1758055930724,-400.0,0.00032602,6]
[385818583,1758055930735,-405.86,0.00032602,6]
[385818584,1758055930745,-1940.41,0.00032602,6]
[385818585,1758055930755,-400.0,0.00032602,6]
[385818586,1758055930765,-400.0,0.00032602,6]
[385818587,1758055930776,-2380.39,0.00032602,6]
[385818588,1758055930787,-503.64,0.00032602,6]
[385818589,1758055930797,-623.1,0.00032602,6]
[385818590,1758055930807,-400.0,0.00032602,6]
[385818591,1758055930817,-852.09,0.00032602,6]
[385818592,1758055930828,-700.18,0.00032602,6]
[385818593,1758055930838,-464.58,0.00032602,6]
[385818594,1758055930849,-400.0,0.00032602,6]
[385818595,1758055930859,-794.77,0.00032602,6]
[385818596,1758055930870,-400.0,0.00032602,6]
[385818597,1758055930880,-400.0,0.00032602,6]
[385818598,1758055930890,-742.26,0.00032602,6]
[385818599,1758055930901,-885.24,0.00032602,6]
[385818600,1758055930912,-679.38,0.00032602,6]
[385818601,1758055930923,-400.0,0.00032602,6]
[385818602,1758055930934,-419.78,0.00032602,6]
[385818603,1758055930944,-2714.52,0.00032602,6]
[385818604,1758055930955,-472.34,0.00032602,6]
[385818605,1758055930965,-1211.27,0.00032602,6]
[385818606,1758055930975,-456.67,0.00032602,6]
[385818607,1758055930986,-400.0,0.00032602,6]
[385818608,1758055930996,-400.0,0.00032602,6]
[385818609,1758055931006,-400.0,0.00032602,6]
[385818610,1758055931016,-1571.87374023,0.00032605,2]
[385818611,1758055931026,-922.44356832,0.0003261,2]
[385818612,1758055931037,-1227.23762745,0.00032612,2]
[385818613,1758055931047,-500.0,0.00032614,120]
[385818614,1758055931057,-500.0,0.00032632,7]
[385818615,1758055931067,-701.87,0.00032667,2]
[385818616,1758055931077,-500.0,0.00032694,7]
[385818617,1758055931088,-800.0,0.00032708,7]
[385818618,1758055931098,-662.14,0.00032708,2]
[385818619,1758055931108,-1800.0,0.00032717,7]
[385818620,1758055931119,-326.45,0.00032722,30]
[385818621,1758055931129,-150.0,0.00032739,2]
[385818622,1758055931139,-196.78849034,0.0003274,7]
[385818623,1758055931149,-500.0,0.00032776,7]
[385818624,1758055931160,-500.0,0.00032778,2]
[385818625,1758055931170,-500.0,0.00032778,2]
[385818626,1758055931180,-321.99,0.00032781,2]
[385818627,1758055931191,-1000.0,0.00032837,7]
[385818628,1758055931201,-500.0,0.00032842,7]
[385818629,1758055931211,-470.0,0.00032862,2]
[385818630,1758055931221,-500.0,0.00032862,2]
[385818631,1758055931232,-500.0,0.00032864,7]
[385818632,1758055931242,-400.0,0.00032876,6]
[385818633,1758055931252,-252.10121171,0.00032876,6]
[385818634,1758055931263,-400.0,0.00032876,6]
[385818635,1758055931273,-400.0,0.00032876,6]
[385818636,1758055931284,-400.0,0.00032876,6]
[385818637,1758055931294,-400.0,0.00032876,6]
[385818638,1758055931304,-400.0,0.00032876,6]
[385818639,1758055931315,-400.0,0.00032876,6]
[385818640,1758055931325,-400.0,0.00032876,6]
[385818641,1758055931335,-400.0,0.00032876,6]
[385818642,1758055931346,-400.0,0.00032876,6]
[385818643,1758055931360,-400.0,0.00032876,6]
[385818644,1758055931371,-400.0,0.00032876,6]
[385818645,1758055931381,-400.0,0.00032876,6]
[385818646,1758055931391,-400.0,0.00032876,6]
[385818647,1758055931402,-400.0,0.00032876,6]
[385818648,1758055931413,-400.0,0.00032876,6]
[385818649,1758055931423,-400.0,0.00032876,6]
[385818650,1758055931434,-466.26,0.00032876,6]
[385818651,1758055931444,-400.0,0.00032876,6]
[385818652,1758055931454,-418.26878276,0.00032876,6]
[385818653,1758055931464,-400.0,0.00032876,6]
[385818654,1758055931474,-400.0,0.00032876,6]
[385818655,1758055931484,-400.0,0.00032876,6]
[385818656,1758055931495,-400.0,0.00032876,6]
[385818657,1758055931507,-400.0,0.00032876,6]
[385818658,1758055931520,-400.0,0.00032876,6]
[385818659,1758055931530,-466.99,0.00032876,6]
[385818660,1758055931541,-407.45278815,0.00032876,6]
[385818661,1758055931551,-400.0,0.00032876,6]
[385818662,1758055931562,-588.47,0.00032876,6]
[385818663,1758055931572,-400.0,0.00032876,6]
[385818664,1758055931583,-400.0,0.00032876,6]
[385818665,1758055931595,-400.0,0.00032876,6]
[385818666,1758055931606,-400.0,0.00032876,6]
[385818667,1758055931617,-400.0,0.00032876,6]
[385818668,1758055931627,-543.16788225,0.00032876,6]
[385818669,1758055931638,-400.0,0.00032876,6]
[385818670,1758055931650,-400.0,0.00032876,6]
[385818671,1758055931662,-400.0,0.00032876,6]
[385818672,1758055931673,-400.0,0.00032876,6]
[385818673,1758055931684,-400.0,0.00032876,6]
[385818674,1758055931694,-216.88306234,0.00032876,6]
[385818675,1758055931705,-448.17,0.00032876,6]
[385818676,1758055931715,-400.0,0.00032876,6]
[385818677,1758055931726,-439.12,0.00032876,6]
[385818678,1758055931737,-901.58,0.00032876,6]
[385818679,1758055931747,-568.53,0.00032876,6]
[385818680,1758055931758,-400.0,0.00032876,6]
[385818681,1758055931768,-400.0,0.00032876,6]
[385818682,1758055931779,-583.89,0.00032876,6]
[385818683,1758055931789,-400.0,0.00032876,6]
[385818684,1758055931801,-614.16,0.00032876,6]
[385818685,1758055931812,-400.0,0.00032876,6]
[385818686,1758055931822,-400.0,0.00032876,6]
[385818687,1758055931833,-677.09,0.00032876,6]
[385818688,1758055931843,-442.39,0.00032876,6]
[385818689,1758055931854,-437.71,0.00032876,6]
[385818690,1758055931864,-771.61,0.00032876,6]
[385818691,1758055931875,-933.64,0.00032876,6]
[385818692,1758055931886,-400.0,0.00032876,6]
[385818693,1758055931896,-400.0,0.00032876,6]
[385818694,1758055931906,-555.07,0.00032876,6]
[385818695,1758055931918,-167.85250521,0.00032876,6]
[385818696,1758055931928,-405.05672827,0.00032876,6]
[385818697,1758055931939,-400.0,0.00032876,6]
[385818698,1758055931950,-400.0,0.00032876,6]
[385818699,1758055931960,-438.36,0.00032876,6]
[385818700,1758055931970,-584.99,0.00032876,6]
[385818701,1758055931981,-400.0,0.00032876,6]
[385818702,1758055931992,-433.4,0.00032876,6]
[385818703,1758055932002,-400.0,0.00032876,6]
[385818704,1758055932012,-400.0,0.00032876,6]
[385818705,1758055932022,-400.0,0.00032876,6]
[385818706,1758055932033,-400.0,0.00032876,6]
[385818707,1758055932044,-400.22,0.00032876,6]
[385818708,1758055932054,-400.0,0.00032876,6]
[385818709,1758055932065,-400.0,0.00032876,6]
[385818710,1758055932075,-815.51,0.00032876,6]
[385818711,1758055932086,-400.0,0.00032876,6]
[385818712,1758055932096,-400.0,0.00032876,6]
[385818713,1758055932107,-219.7765658,0.00032876,6]
[385818714,1758055932117,-400.0,0.00032876,6]
[385818715,1758055932127,-667.42,0.00032876,6]
[385818716,1758055932138,-512.12,0.00032876,6]
[385818717,1758055932148,-454.53,0.00032876,6]
[385818718,1758055932158,-400.0,0.00032876,6]
[385818719,1758055932168,-400.0,0.00032876,6]
[385818720,1758055932179,-461.69,0.00032876,6]
[385818721,1758055932189,-400.0,0.00032876,6]
[385818722,1758055932199,-977.81,0.00032876,6]
[385818723,1758055932210,-487.61,0.00032876,6]
[385818724,1758055932220,-493.83,0.00032876,6]
[385818725,1758055932230,-400.0,0.00032876,6]
[385818726,1758055932241,-400.0,0.00032876,6]
[385818727,1758055932251,-400.0,0.00032876,6]
[385818728,1758055932261,-572.71,0.00032876,6]
[385818729,1758055932272,-439.87,0.00032876,6]
[385818730,1758055932282,-504.8,0.00032876,6]
[385818731,1758055932292,-601.77,0.00032876,6]
[385818732,1758055932303,-400.0,0.00032876,6]
[385818733,1758055932313,-400.0,0.00032876,6]
[385818734,1758055932323,-310.93996507,0.00032876,6]
[385818735,1758055932334,-412.65,0.00032876,6]
[385818736,1758055932345,-400.0,0.00032876,6]
[385818737,1758055932359,-496.77,0.00032876,6]
[385818738,1758055932369,-400.0,0.00032876,6]
[385818739,1758055932380,-626.49,0.00032876,120]
[385818740,1758055932390,-626.49,0.00032876,120]
[385818741,1758055932402,-626.49,0.00032876,120]
[385818742,1758055932412,-626.49,0.00032876,120]
[385818743,1758055932422,-626.49,0.00032876,120]
[385818744,1758055932434,-626.49,0.00032876,120]
[385818745,1758055932445,-626.49,0.00032876,120]
[385818746,1758055932455,-626.49,0.00032876,120]
[385818747,1758055932465,-626.49,0.00032876,120]
[385818748,1758055932476,-626.49,0.00032876,120]
[385818749,1758055932486,-626.49,0.00032876,120]
[385818750,1758055932497,-400.0,0.00032876,6]
[385818751,1758055932507,-400.0,0.00032876,6]
[385818752,1758055932518,-1174.65,0.00032876,6]
[385818753,1758055932529,-400.0,0.00032876,6]
[385818754,1758055932540,-400.0,0.00032876,6]
[385818755,1758055932550,-482.53,0.00032876,6]
[385818756,1758055932560,-512.06,0.00032876,6]
[385818757,1758055932570,-400.0,0.00032876,6]
[385818758,1758055932581,-400.0,0.00032876,6]
[385818759,1758055932591,-552.22,0.00032876,6]
[385818760,1758055932602,-400.0,0.00032876,6]
[385818761,1758055932612,-400.0,0.00032876,6]
[385818762,1758055932623,-400.0,0.00032876,6]
[385818763,1758055932879,-404.94,0.00032876,6]
[385818764,1758055932889,-829.35,0.00032876,5]
[385818765,1758055932900,-400.0,0.00032876,6]
[385818766,1758055932910,-400.0,0.00032876,6]
[385818767,1758055932920,-447.21,0.00032876,6]
[385818768,1758055932929,-400.0,0.00032876,6]
[385818769,1758055932939,-1534.55,0.00032876,6]
[385818770,1758055932949,-582.44,0.00032876,6]
[385818771,1758055932959,-439.97,0.00032876,6]
[385818772,1758055932968,-520.07,0.00032876,6]
[385818773,1758055932977,-436.33,0.00032876,6]
[385818774,1758055932987,-476.19,0.00032876,6]
[385818775,1758055932996,-400.0,0.00032876,6]
[385818776,1758055933005,-2652.66,0.00032876,6]
[385818777,1758055933015,-400.0,0.00032876,6]
[385818778,1758055933025,-851.33,0.00032876,6]
[385818779,1758055933034,-400.0,0.00032876,6]
[385818780,1758055933043,-400.0,0.00032876,6]
[385818781,1758055933053,-400.0,0.00032876,6]
[385818782,1758055933063,-400.0,0.00032876,6]
[385818783,1758055933073,-712.67,0.00032876,6]
[385818784,1758055933083,-606.89,0.00032876,6]
[385818785,1758055933092,-441.66,0.00032876,6]
[385818786,1758055933102,-400.0,0.00032876,6]
[385818787,1758055933112,-400.0,0.00032876,6]
[385818788,1758055933121,-400.0,0.00032876,6]
[385818789,1758055933131,-589.15,0.00032876,6]
[385818790,1758055933140,-400.0,0.00032876,6]
[385818791,1758055933150,-491.06,0.00032876,6]
[385818792,1758055933159,-643.54,0.00032876,6]
[385818793,1758055933169,-531.4,0.00032876,6]
[385818794,1758055933179,-716.44,0.00032876,6]
[385818795,1758055933189,-441.09,0.00032876,6]
[385818796,1758055933199,-498.56,0.00032876,6]
[385818797,1758055933209,-400.0,0.00032876,6]
[385818798,1758055933220,-692.32,0.00032876,6]
[385818799,1758055933230,-400.0,0.00032876,6]
[385818800,1758055933240,-3193.35,0.00032876,6]
[385818801,1758055933250,-400.0,0.00032876,6]
[385818802,1758055933261,-400.0,0.00032876,6]
[385818803,1758055933272,-559.39,0.00032876,6]
[385818804,1758055933281,-994.07,0.00032876,6]
[385818805,1758055933291,-430.31,0.00032876,6]
[385818806,1758055933301,-412.75,0.00032876,6]
[385818807,1758055933311,-414.15,0.00032876,6]
[385818808,1758055933322,-400.0,0.00032876,6]
[385818809,1758055933332,-400.0,0.00032876,6]
[385818810,1758055933342,-739.18,0.00032876,6]
[385818811,1758055933356,-400.0,0.00032876,6]
[385818812,1758055933366,-400.0,0.00032876,6]
[385818813,1758055933376,-400.0,0.00032876,6]
[385818814,1758055933386,-1559.48,0.00032876,6]
[385818815,1758055933397,-400.0,0.00032876,6]
[385818816,1758055933407,-400.0,0.00032876,6]
[385818817,1758055933418,-400.0,0.00032876,6]
[385818818,1758055933431,-542.77,0.00032876,6]
[385818819,1758055933442,-400.0,0.00032876,6]
[385818820,1758055933452,-400.0,0.00032876,6]
[385818821,1758055933462,-338.72358121,0.00032876,6]
[385818822,1758055933471,-582.39,0.00032876,6]
[385818823,1758055933482,-479.79,0.00032876,6]
[385818824,1758055933492,-400.0,0.00032876,6]
[385818825,1758055933502,-532.53,0.00032876,6]
[385818826,1758055933514,-400.0,0.00032876,6]
[385818827,1758055933524,-619.12,0.00032876,6]
[385818828,1758055933534,-3974.25,0.00032876,6]
[385818829,1758055933544,-441.55,0.00032876,6]
[385818830,1758055933554,-563.92,0.00032876,6]
[385818831,1758055933566,-400.0,0.00032876,6]
[385818832,1758055933577,-400.0,0.00032876,6]